bitfinex/quotes_ETHUSD_20251006
["timestamp","ask_amount","ask_price","bid_price","bid_amount"]
[1759782434209,6.60245762,4696.5,4696.4,1e-08]
[1759782434415,9.00745762,4696.5,4696.4,1e-08]
[1759782434834,6.1487285,4696.5,4696.4,1e-08]
[1759782435042,5.84191082,4696.5,4696.4,1e-08]
[1759782436108,5.84191408,4696.5,4696.4,1e-08]
[1759782437143,6.76761276,4696.5,4696.4,1e-08]
[1759782437528,9.16761276,4696.5,4696.4,1e-08]
[1759782437731,10.35463948,4696.5,4696.4,1e-08]
[1759782439214,7.94963948,4696.5,4696.4,1e-08]
[1759782439414,10.35463948,4696.5,4696.4,1e-08]
[1759782440316,9.88763948,4696.5,4696.4,1e-08]
[1759782440664,9.99403948,4696.5,4696.4,1e-08]
[1759782440815,10.46103948,4696.5,4696.4,1e-08]
[1759782442020,10.46102277,4696.5,4696.4,1e-08]
[1759782443374,9.99402277,4696.5,4696.4,1e-08]
[1759782444928,10.46102277,4696.5,4696.4,1e-08]
[1759782445657,6.95542277,4696.5,4696.4,1e-08]
[1759782445829,5.66199605,4696.5,4696.4,1e-08]
[1759782446033,6.29559605,4696.5,4696.4,1e-08]
[1759782446448,8.70059605,4696.5,4696.4,1e-08]
[1759782447758,6.30059605,4696.5,4696.4,0.47500001]
[1759782448070,5.84189737,4696.5,4696.4,0.47500001]
[1759782448974,5.74189737,4696.5,4696.4,0.47500001]
[1759782449174,5.74189737,4696.5,4696.4,1e-08]
[1759782449377,5.74197344,4696.5,4696.4,1e-08]
[1759782450043,1.20772826,4696.5,4696.4,1e-08]
[1759782450365,3.33697344,4696.5,4696.4,0.47500001]
[1759782451276,3.33697344,4696.5,4696.4,1e-08]
[1759782452744,3.7958157,4696.5,4696.4,1e-08]
[1759782453642,3.33697344,4696.5,4696.4,1e-08]
[1759782454477,3.79585304,4696.5,4696.4,1e-08]
[1759782455372,4.62885513,4696.5,4696.4,1e-08]
[1759782455568,5.09375513,4696.5,4696.4,1e-08]
[1759782455757,5.20015513,4696.5,4696.4,1e-08]
[1759782455957,4.73525513,4696.5,4696.4,1e-08]
[1759782456154,7.14025513,4696.5,4696.4,1e-08]
[1759782456539,4.73525513,4696.5,4696.4,1e-08]
[1759782456742,7.14025513,4696.5,4696.4,1e-08]
[1759782458800,3.90225304,4696.5,4696.4,1e-08]
[1759782465053,6.30725304,4696.5,4696.4,1e-08]
[1759782465650,6.30925304,4696.5,4696.4,1e-08]
[1759782465988,1.14140786,4696.5,4696.4,0.44890001]
[1759782466191,0.30752825,4696.5,4696.4,0.44890001]
[1759782466775,0.20112825,4696.5,4696.4,0.44890001]
[1759782467091,0.002,4696.5,4696.4,0.89780002]
[1759782467286,0.002,4696.5,4696.4,0.79112001]
[1759782467451,0.1084,4696.5,4696.4,0.79112001]
[1759782471891,0.002,4696.5,4696.4,0.79112001]
[1759782472456,0.002,4696.5,4696.4,13.51435601]
[1759782473354,0.002,4696.5,4696.4,6.04960001]
[1759782473556,0.002,4696.5,4696.4,0.79112001]
[1759782473859,0.002,4696.5,4696.4,1e-08]
[1759782475780,0.002,4696.5,4696.4,24.39319201]
[1759782476081,0.002,4696.5,4696.4,10.28336301]
[1759782480573,0.002,4696.5,4696.4,9.75012101]
[1759782482093,0.002,4696.5,4696.4,32.84890001]
[1759782482281,0.0066,4697.2,4696.4,32.84890001]
[1759782482282,0.0066,4697.2,4696.5,4.52924314]
[1759782482462,0.0066,4697.2,4696.6,11.929517]
[1759782482667,0.0066,4697.2,4696.7,9.369376]
[1759782482863,0.0066,4697.2,4696.7,11.94742504]
[1759782483195,0.0066,4697.2,4696.8,14.92221]
[1759782483360,0.0066,4697.2,4696.9,12.954858]
[1759782483566,0.0066,4697.2,4697.0,2.405]
[1759782483769,0.0066,4697.2,4697.0,14.908725]
[1759782483970,0.0066,4697.2,4697.0,7.445195]
[1759782484161,0.0066,4697.2,4697.0,7.863106]
[1759782485194,0.0066,4697.2,4697.0,9.417438]
[1759782485401,0.0066,4697.2,4697.0,7.999938]
[1759782486299,0.0066,4697.2,4697.0,8.226203]
[1759782487303,0.0066,4697.2,4697.0,7.686201]
[1759782488423,0.0066,4697.2,4697.0,9.639166]
[1759782488600,0.0066,4697.2,4697.0,8.221666]
[1759782489104,0.0066,4697.2,4697.0,7.908375]
[1759782489304,0.0066,4697.2,4697.0,2.8342]
[1759782489479,0.0066,4697.2,4697.0,8.082375]
[1759782489673,0.0066,4697.2,4697.0,6.749588]
[1759782489876,0.0066,4697.2,4697.0,5.030551]
[1759782490073,0.0066,4697.2,4697.0,5.5442461]
[1759782490483,0.0066,4697.2,4697.0,11.3663371]
[1759782491514,0.0066,4697.2,4697.0,25.52033762]
[1759782491809,0.0066,4697.2,4697.0,17.29973362]
[1759782492389,0.0066,4697.2,4697.0,16.6371881]
[1759782492588,0.0066,4697.2,4697.0,16.2679981]
[1759782493510,0.0066,4697.2,4697.0,16.8128101]
[1759782493811,0.0066,4697.2,4697.0,14.3572441]
[1759782494210,0.0066,4697.2,4697.0,12.7815851]
[1759782494410,0.0066,4697.2,4697.0,13.2107851]
[1759782494616,0.0066,4697.2,4697.0,13.2454341]
[1759782494788,0.0066,4697.2,4697.0,12.8162341]
[1759782494989,0.0066,4697.2,4697.0,15.37445262]
[1759782495755,0.0066,4697.2,4697.0,20.89230862]
[1759782496219,0.0066,4697.2,4697.0,20.54243862]
[1759782496727,0.0066,4697.2,4697.0,20.2381641]
[1759782496925,0.0066,4697.2,4697.0,12.0307621]
[1759782497616,0.0066,4697.2,4697.0,15.6757891]
[1759782497800,0.0066,4697.2,4697.0,14.8950181]
[1759782498604,0.0066,4697.2,4697.0,16.5310531]
[1759782499625,0.0066,4697.2,4697.0,14.6860021]
[1759782499926,0.0066,4697.2,4697.0,17.0900021]
[1759782500223,0.0066,4697.2,4697.0,19.21902062]
[1759782500589,0.0066,4697.2,4697.0,27.59880862]
[1759782500789,0.0066,4697.2,4697.0,27.32411162]
[1759782501092,0.0066,4697.2,4697.0,20.4241631]
[1759782501627,0.0066,4697.2,4697.0,22.45458862]
[1759782501823,0.0066,4697.2,4697.0,20.3255701]
[1759782502035,0.0066,4697.2,4697.0,17.5608301]
[1759782502239,0.0066,4697.2,4697.0,11.7580191]
[1759782502609,0.0066,4697.2,4697.0,5.3176951]
[1759782502911,0.0066,4697.2,4697.0,13.1341741]
[1759782503695,0.0066,4697.2,4697.0,18.84705462]
[1759782503895,0.0066,4697.2,4697.0,15.2099611]
[1759782504798,0.0066,4697.2,4697.0,14.8980691]
[1759782505000,0.0066,4697.2,4697.0,13.7805841]
[1759782505916,0.4392,4697.1,4697.0,0.5136951]
[1759782506220,0.4392,4697.1,4697.0,2.404]
[1759782506421,0.4392,4697.1,4696.4,1e-08]
[1759782506625,0.4392,4697.1,4696.5,2.404]
[1759782506826,0.4372,4697.0,4696.5,2.404]
[1759782507033,0.4372,4696.9,4696.5,2.404]
[1759782507231,0.4372,4696.8,4696.6,2.404]
[1759782507411,0.4372,4696.7,4696.6,2.404]
[1759782509928,0.4372,4696.7,4696.4,1e-08]
[1759782510108,0.4372,4696.7,4696.6,2.404]
[1759782510310,0.4372,4696.7,4696.4,1e-08]
[1759782510515,2.12924518,4696.5,4696.4,1e-08]
[1759782510729,0.4372,4696.7,4696.4,2.40400001]
[1759782511034,0.4372,4696.6,4696.4,2.40400001]
[1759782511223,0.002,4697.1,4696.6,7.91939]
[1759782511404,0.002,4697.1,4696.4,2.40400001]
[1759782511802,0.002,4697.1,4696.5,2.54177]
[1759782512138,0.20088839,4697.1,4696.5,2.54177]
[1759782513145,0.002,4697.1,4696.5,2.54177]
[1759782513807,0.20088079,4697.1,4696.5,2.54177]
[1759782514008,0.002,4697.1,4696.5,2.54177]
[1759782515234,0.002,4697.1,4696.4,2.40400001]
[1759782515432,0.20077584,4697.1,4696.5,3.022]
[1759782515643,0.002,4697.1,4696.5,3.022]
[1759782515840,0.002,4697.1,4696.4,2.40400001]
[1759782516039,0.1064,4696.9,4696.4,2.40400001]
[1759782516246,0.5742,4696.9,4696.4,2.40400001]
[1759782517452,0.1064,4696.9,4696.4,2.40400001]
[1759782518344,0.1064,4696.9,4696.4,2.86850001]
[1759782519346,0.1064,4696.9,4696.5,0.001]
[1759782523057,0.1064,4696.9,4696.5,0.4655]
[1759782523554,0.002,4697.1,4697.0,2.12901852]
[1759782523856,0.002,4697.1,4697.0,20.42213252]
[1759782524146,0.002,4697.1,4697.0,23.34174552]
[1759782524318,0.002,4697.1,4697.0,22.20594552]
[1759782524520,0.002,4697.1,4697.0,22.70843365]
[1759782524735,0.002,4697.1,4697.0,23.79797865]
[1759782524934,0.002,4697.1,4697.0,21.95214865]
[1759782525649,0.002,4697.1,4697.0,22.27655165]
[1759782525851,0.002,4697.1,4697.0,10.52221013]
[1759782526025,0.002,4697.1,4697.0,9.08147313]
[1759782526652,0.002,4697.1,4697.0,5.77098813]
[1759782526854,0.002,4697.1,4697.0,14.77915913]
[1759782527352,0.002,4697.1,4697.0,16.90817765]
[1759782527856,0.002,4697.1,4697.0,10.06741013]
[1759782528723,0.002,4697.1,4697.0,10.72486213]
[1759782529740,0.002,4697.1,4697.0,5.77098813]
[1759782529962,0.002,4697.1,4697.0,10.78994013]
[1759782530271,0.002,4697.1,4697.0,7.39370913]
[1759782530560,0.002,4697.1,4697.0,7.36045713]
[1759782530743,0.002,4697.1,4697.0,7.38172013]
[1759782530943,0.002,4697.1,4697.0,7.36924613]
[1759782531457,0.002,4697.1,4697.0,7.44050513]
[1759782531666,0.002,4697.1,4697.0,7.52566414]
[1759782531959,0.002,4697.1,4697.0,7.47853814]
[1759782532160,0.002,4697.1,4697.0,7.49701514]
[1759782532355,0.002,4697.1,4697.0,5.39164714]
[1759782532731,0.002,4697.1,4697.0,7.72349214]
[1759782533076,0.002,4697.1,4697.0,5.39164714]
[1759782533373,0.002,4697.1,4697.0,6.10689614]
[1759782533538,0.002,4697.1,4697.0,4.804]
[1759782534439,0.002,4697.1,4697.0,7.440615]
[1759782535536,0.002,4697.1,4697.0,17.065141]
[1759782535737,0.002,4697.1,4697.0,16.539206]
[1759782535955,0.002,4697.1,4697.0,13.303214]
[1759782536356,0.002,4697.1,4697.0,11.558546]
[1759782536536,0.002,4697.1,4697.0,11.691185]
[1759782536735,0.0066,4697.2,4697.0,15.26020352]
[1759782536934,0.002,4698.5,4697.1,37.09428406]
[1759782537134,0.002,4699.8,4697.4,0.6336]
[1759782537342,0.002,4700.4,4699.5,2.12787557]
[1759782537562,0.002,4700.4,4699.8,2.12775011]
[1759782537877,0.002,4700.4,4699.8,22.46855711]
[1759782538177,0.002,4700.4,4699.8,20.1644104]
[1759782538579,0.002,4700.4,4699.8,7.4813564]
[1759782539379,0.002,4700.4,4699.8,17.44042529]
[1759782539579,0.4678,4700.2,4699.8,2.22159429]
[1759782539766,0.4678,4700.1,4699.8,4.539488]
[1759782540684,0.002,4700.4,4699.8,28.027771]
[1759782540861,0.002,4700.4,4699.8,32.403]
[1759782541474,0.002,4700.4,4699.8,2.403]
[1759782541879,0.002,4700.4,4699.8,32.060014]
[1759782542684,0.002,4700.4,4699.8,13.723339]
[1759782542884,0.002,4700.4,4699.8,10.024146]
[1759782543082,0.002,4700.4,4699.8,8.950134]
[1759782543679,0.002,4700.4,4699.8,13.209293]
[1759782543991,0.002,4700.4,4699.8,27.865813]
[1759782544166,0.002,4700.4,4699.8,20.823107]
[1759782544514,0.002,4700.4,4699.8,15.39129]
[1759782544655,0.002,4700.4,4699.8,15.476399]
[1759782545078,0.002,4700.4,4699.8,16.418207]
[1759782545589,0.002,4700.4,4699.8,8.212833]
[1759782545857,0.002,4700.4,4699.8,5.673057]
[1759782546057,0.002,4700.4,4699.8,7.205793]
[1759782546759,0.002,4700.4,4699.8,7.312193]
[1759782546959,0.002,4700.4,4699.8,11.061548]
[1759782548195,0.002,4700.4,4699.8,11.466531]
[1759782549093,0.002,4700.4,4699.8,13.003852]
[1759782549802,0.002,4700.4,4699.8,15.13160211]
[1759782550179,0.002,4700.4,4699.8,14.458702]
[1759782550504,0.4773,4699.9,4699.8,0.1064]
[1759782550689,0.4773,4699.9,4699.8,5.5446]
[1759782550890,0.012,4699.9,4699.8,8.45283]
[1759782551201,0.012,4699.9,4699.8,14.790141]
[1759782551363,0.012,4699.9,4699.8,12.104916]
[1759782551568,0.012,4699.9,4699.8,11.293716]
[1759782551804,0.012,4699.9,4699.8,10.569716]
[1759782552318,0.012,4699.9,4699.8,11.600417]
[1759782552525,0.012,4699.9,4699.8,11.591693]
[1759782552710,0.012,4699.9,4699.8,13.971963]
[1759782552912,0.012,4699.9,4699.8,12.340687]
[1759782553219,0.012,4699.9,4699.8,12.978917]
[1759782553423,0.012,4699.9,4699.8,12.82816]
[1759782553624,0.012,4699.9,4699.8,12.935428]
[1759782553923,0.012,4699.9,4699.8,12.963747]
[1759782554125,0.012,4699.9,4699.8,12.82816]
[1759782554291,0.012,4699.9,4699.8,16.12782211]
[1759782554627,0.012,4699.9,4699.8,16.16106011]
[1759782554812,0.012,4699.9,4699.8,17.80593811]
[1759782555014,0.002,4700.3,4699.8,17.80593811]
[1759782555015,0.002,4700.3,4699.8,31.511113]
[1759782555210,0.002,4700.3,4699.9,34.95580484]
[1759782555396,0.002,4700.3,4700.2,0.1064]
[1759782555590,0.002,4700.3,4700.2,32.5084]
[1759782555791,0.002,4700.3,4700.2,32.5935014]
[1759782555988,0.002,4700.3,4700.2,34.72107043]
[1759782556223,0.002,4700.3,4700.2,21.12381743]
[1759782556402,0.002,4700.3,4700.2,17.82004743]
[1759782556824,0.002,4700.3,4700.2,18.24814743]
[1759782556997,0.002,4700.3,4700.2,2.5935014]
[1759782557196,0.002,4700.3,4700.2,5.8753334]
[1759782557528,0.002,4700.3,4700.2,6.4030754]
[1759782558727,0.002,4700.3,4700.2,5.6609844]
[1759782560035,0.002,4700.3,4700.2,3.2589844]
[1759782560199,0.002,4700.3,4700.2,4.7966624]
[1759782560659,0.002,4700.3,4700.2,2.3946624]
[1759782560940,0.002,4700.3,4700.2,15.98357343]
[1759782561114,0.002,4700.3,4700.2,15.41952343]
[1759782561318,0.002,4700.3,4700.2,17.82152343]
[1759782561907,0.002,4700.3,4700.2,22.00551043]
[1759782562902,0.002,4700.3,4700.2,25.53602243]
[1759782563218,0.002,4700.3,4700.2,25.96412243]
[1759782563403,0.002,4700.3,4700.2,28.36412243]
[1759782563938,0.002,4700.3,4700.2,28.74727843]
[1759782564916,0.002,4700.3,4700.2,37.54917043]
[1759782566810,0.002,4700.3,4700.2,36.13350943]
[1759782567119,0.002,4700.3,4700.2,35.70515543]
[1759782567761,0.002,4700.3,4700.2,31.84751243]
[1759782568054,0.002,4700.3,4700.2,31.98142943]
[1759782568950,0.002,4700.3,4700.2,7.54917043]
[1759782569341,0.002,4700.3,4700.2,35.12100943]
[1759782569532,0.002,4700.3,4700.2,37.54917043]
[1759782570025,0.002,4700.3,4700.2,37.53946643]
[1759782571046,0.002,4700.3,4700.2,29.81976343]
[1759782572032,0.002,4700.3,4700.2,8.1643464]
[1759782572250,0.002,4700.3,4700.2,10.29191543]
[1759782572832,0.002,4700.3,4700.2,10.72001543]
[1759782573033,0.002,4700.3,4700.2,25.90904743]
[1759782573272,0.002,4700.3,4700.2,25.87488043]
[1759782573642,0.002,4700.3,4700.2,21.97087343]
[1759782573834,0.002,4700.3,4700.2,21.41887643]
[1759782574033,0.002,4700.3,4700.2,7.54917043]
[1759782574237,0.002,4700.3,4700.2,7.44277043]
[1759782574436,0.002,4700.3,4700.2,20.16916043]
[1759782574636,0.002,4700.3,4700.2,21.20611843]
[1759782575546,0.002,4700.3,4700.2,17.36016243]
[1759782576161,0.002,4700.3,4700.2,24.05232743]
[1759782576471,0.002,4700.3,4700.2,22.83301743]
[1759782577032,0.002,4700.3,4700.2,7.48357043]
[1759782577372,0.002,4700.3,4700.2,7.01467043]
[1759782577562,0.002,4700.3,4700.2,21.50899543]
[1759782577898,0.002,4700.3,4700.2,22.90063043]
[1759782578189,0.002,4700.3,4700.2,22.80877443]
[1759782578331,0.002,4700.3,4700.2,20.31804743]
[1759782578537,0.002,4700.3,4700.2,20.02509943]
[1759782578750,0.002,4700.3,4700.2,17.11437943]
[1759782579365,0.002,4700.3,4700.2,21.73118943]
[1759782579536,0.4481,4700.3,4700.2,0.0851014]
[1759782579738,0.4481,4700.3,4699.9,1e-08]
[1759782579937,0.4481,4700.3,4700.0,2.402]
[1759782580140,0.002,4700.3,4700.0,2.402]
[1759782580356,0.65924798,4700.2,4700.0,2.402]
[1759782580569,0.4461,4700.1,4700.0,2.402]
[1759782584373,0.5525,4700.1,4700.0,2.402]
[1759782585038,2.6801143,4700.1,4700.0,2.402]
[1759782585241,0.5525,4700.1,4700.0,2.402]
[1759782592893,0.1064,4700.1,4700.0,2.402]
[1759782593289,0.5525,4700.1,4700.0,2.402]
[1759782594698,0.55249999,4700.1,4700.0,2.402]
[1759782596997,0.55249999,4700.1,4699.8,0.001]
[1759782597206,0.4461,4700.0,4699.9,2.402]
[1759782603393,0.71670723,4700.0,4699.8,0.001]
[1759782603630,4.97600484,4699.9,4699.8,0.001]
[1759782604506,5.60960484,4699.9,4699.8,0.001]
[1759782604704,5.80796697,4699.9,4699.8,0.001]
[1759782604925,6.26492458,4699.9,4699.8,0.001]
[1759782605126,7.9430513,4699.9,4699.8,0.001]
[1759782609037,2.76153122,4699.4,4699.3,1e-08]
[1759782609335,7.76189335,4699.4,4699.3,1e-08]
[1759782609505,8.66715096,4699.4,4699.3,1e-08]
[1759782609708,9.74665012,4699.4,4699.3,1e-08]
[1759782610537,9.28969251,4699.4,4699.3,1e-08]
[1759782610747,9.2893517,4699.4,4699.3,1e-08]
[1759782611103,9.74559256,4699.4,4699.3,1e-08]
[1759782611326,9.2893517,4699.4,4699.3,1e-08]
[1759782612131,9.74546053,4699.4,4699.3,1e-08]
[1759782612833,12.07063659,4699.4,4699.3,1e-08]
[1759782613038,2.76171236,4699.0,4698.9,0.001]
[1759782613213,14.79421211,4699.0,4698.9,0.001]
[1759782613535,5.26892787,4697.2,4696.6,0.4383]
[1759782616408,5.26892787,4697.2,4696.8,0.4383]
[1759782617439,5.26892787,4697.2,4697.1,0.4483]
[1759782617840,5.26892787,4697.2,4697.1,0.01]
[1759782623768,5.26892787,4697.2,4697.1,0.011]
[1759782624171,2.5064,4697.2,4697.1,0.4493]
[1759782624664,0.1064,4697.2,4697.1,0.4493]
[1759782625365,2.12843094,4698.3,4697.1,10.49674845]
[1759782625366,2.12843844,4698.3,4697.1,10.49674845]
[1759782625662,2.12848049,4698.2,4697.2,0.4383]
[1759782625848,2.12847473,4698.2,4697.2,0.4383]
[1759782626255,2.12843745,4698.3,4697.2,0.4383]
[1759782626762,2.12848552,4698.2,4697.2,0.4383]
[1759782626968,2.12844159,4698.3,4697.2,0.69613061]
[1759782627133,2.12844159,4698.3,4697.3,0.4383]
[1759782627334,2.12848898,4698.2,4697.3,0.4383]
[1759782627949,3.0336,4698.4,4697.3,0.4383]
[1759782628150,2.1284318,4698.3,4697.3,0.4383]
[1759782628363,3.0336,4698.4,4697.3,0.4383]
[1759782628563,2.12850595,4698.2,4697.3,0.4383]
[1759782629085,2.1284639,4698.3,4697.3,0.4383]
[1759782630456,2.12848457,4698.2,4697.3,0.4383]
[1759782630782,2.12856928,4698.0,4697.3,0.4383]
[1759782630982,1.26720702,4698.0,4697.1,0.011]
[1759782631213,0.6336,4697.8,4697.1,0.011]
[1759782631362,2.76249117,4697.3,4697.1,0.011]
[1759782631567,2.12889117,4697.3,4697.1,0.011]
[1759782631784,0.6336,4697.4,4697.1,0.011]
[1759782632165,4.52891683,4697.3,4697.1,0.011]
[1759782633381,4.52892787,4697.2,4697.1,0.011]
[1759782633578,4.98092787,4697.2,4697.1,0.011]
[1759782633980,2.90284391,4697.3,4697.1,0.011]
[1759782634180,2.4,4697.3,4697.1,0.011]
[1759782634372,4.52888816,4697.3,4697.1,0.011]
[1759782635482,0.1064,4697.2,4697.1,0.011]
[1759782643483,5.06862787,4697.2,4697.1,0.011]
[1759782644497,2.66862787,4697.2,4697.1,0.011]
[1759782644819,2.86709129,4697.2,4697.1,0.011]
[1759782645514,4.15541059,4697.2,4697.1,0.011]
[1759782646316,6.55539695,4697.2,4697.1,0.011]
[1759782646506,6.35694717,4697.2,4697.1,0.011]
[1759782647084,6.55536788,4697.2,4697.1,0.011]
[1759782647418,6.55537239,4697.2,4697.1,0.011]
[1759782648215,6.35694717,4697.2,4697.1,0.011]
[1759782648412,6.55537639,4697.2,4697.1,0.011]
[1759782649119,6.12207639,4697.2,4697.1,0.011]
[1759782649320,3.14,4697.2,4697.1,0.011]
[1759782649525,0.74,4697.2,4697.1,0.011]
[1759782650322,2.86892787,4697.2,4697.1,0.011]
[1759782650896,0.74,4697.2,4697.1,0.011]
[1759782651496,2.86892787,4697.2,4697.1,0.011]
[1759782655012,0.74,4697.2,4697.1,0.011]
[1759782657010,2.86892787,4697.2,4697.1,0.011]
[1759782657207,0.74,4697.2,4697.1,0.011]
[1759782657536,0.1064,4697.2,4697.1,0.4486]
[1759782659206,0.1064,4697.3,4697.1,0.4486]
[1759782659637,0.1064,4697.3,4697.2,2.403]
[1759782659823,0.1064,4697.6,4697.3,25.287287]
[1759782660135,0.1064,4697.6,4697.4,0.4376]
[1759782660534,0.1064,4697.6,4697.5,0.4376]
[1759782660941,0.1064,4697.6,4697.5,10.51934791]
[1759782661263,2.56350668,4698.8,4697.9,2.12857677]
[1759782661264,0.1064,4698.1,4697.9,2.12857677]
[1759782661542,0.1064,4698.1,4698.0,2.8406]
[1759782662209,0.1064,4698.1,4698.0,15.459162]
[1759782662407,0.1064,4698.1,4698.0,15.285162]
[1759782663033,0.1064,4698.1,4698.0,10.249839]
[1759782663235,0.1064,4698.1,4698.0,2.403]
[1759782663437,0.1064,4698.1,4697.7,0.4277]
[1759782663641,0.1064,4698.1,4698.0,2.403]
[1759782664615,0.1064,4698.1,4698.0,2.8307]
[1759782665059,0.002,4698.8,4698.0,34.95926534]
[1759782665260,0.002,4698.8,4698.1,0.4277]
[1759782665261,0.1064,4698.4,4698.1,0.4277]
[1759782665555,0.1064,4698.4,4698.2,0.4277]
[1759782666055,0.1064,4698.4,4698.3,0.4277]
[1759782668945,0.1064,4698.4,4698.2,2.403]
[1759782670629,0.002,4698.8,4698.4,30.0]
[1759782670830,0.002,4698.8,4698.2,2.89893057]
[1759782670831,0.002,4698.8,4698.7,2.12824823]
[1759782671059,0.002,4698.8,4698.7,4.53124823]
[1759782671259,0.002,4698.8,4698.7,8.15102923]
[1759782671652,0.002,4698.8,4698.7,10.55102923]
[1759782671850,0.002,4698.8,4698.7,18.05157523]
[1759782672163,0.1084,4699.3,4699.2,2.12802179]
[1759782672164,0.002,4699.3,4699.2,2.12802179]
[1759782672363,0.002,4699.3,4699.2,4.53302179]
[1759782672579,0.002,4699.3,4699.2,15.15806879]
[1759782672857,0.002,4699.3,4699.2,29.17106479]
[1759782673058,0.002,4699.3,4699.2,29.23728904]
[1759782673262,0.002,4699.3,4699.2,28.79142204]
[1759782673627,0.002,4699.8,4699.7,2.12779539]
[1759782673834,0.002,4699.8,4699.7,22.65369239]
[1759782674033,0.002,4699.8,4699.7,14.62099539]
[1759782674836,0.002,4699.8,4699.7,15.36142939]
[1759782675748,0.002,4699.8,4699.7,5.06789539]
[1759782676141,0.002,4699.8,4699.7,16.14069639]
[1759782676471,0.002,4699.8,4699.7,16.19069639]
[1759782676973,0.002,4699.8,4699.7,16.16769639]
[1759782677365,0.002,4699.8,4699.7,14.46396339]
[1759782677857,0.002,4699.8,4699.7,5.06789539]
[1759782678258,0.002,4699.8,4699.7,16.31998439]
[1759782679368,0.002,4699.8,4699.7,11.358489]
[1759782679573,0.002,4699.8,4699.7,2.405]
[1759782680772,0.4435,4699.8,4699.7,2.405]
[1759782681077,0.4435,4699.8,4699.0,0.08512295]
[1759782681286,0.1064,4699.5,4699.1,2.404]
[1759782681573,0.1064,4699.5,4699.2,2.405]
[1759782681574,0.4415,4699.4,4699.2,2.405]
[1759782681750,0.4415,4699.4,4698.9,2.5064]
[1759782681949,0.4415,4699.3,4699.0,2.405]
[1759782682744,0.4415,4699.3,4699.0,4.53310746]
[1759782683069,0.1064,4699.5,4699.1,2.1280616]
[1759782683371,0.5479,4699.5,4699.0,4.53310263]
[1759782683572,0.1064,4699.5,4699.2,2.12800699]
[1759782683744,0.1064,4699.5,4699.3,2.405]
[1759782685607,0.1064,4699.5,4699.4,14.377111]
[1759782686114,0.002,4699.8,4699.4,14.377111]
[1759782686115,0.002,4699.8,4699.4,18.28751322]
[1759782686295,0.002,4699.8,4699.6,2.12780238]
[1759782686495,0.002,4699.8,4699.7,8.404505]
[1759782686904,0.002,4699.8,4699.7,10.53230039]
[1759782687207,0.002,4699.8,4699.7,10.52770039]
[1759782687883,0.002,4699.8,4699.7,10.95540039]
[1759782688283,0.002,4699.8,4699.7,12.42140339]
[1759782688704,0.002,4699.8,4699.7,2.404]
[1759782689096,0.002,4699.8,4699.7,4.53179539]
[1759782689617,0.002,4699.8,4699.7,2.404]
[1759782689816,0.4435,4699.8,4699.5,2.4]
[1759782690035,0.002,4699.8,4699.7,2.404]
[1759782690488,0.002,4699.8,4699.7,10.417263]
[1759782690688,0.002,4699.8,4699.7,13.37905839]
[1759782690906,0.002,4699.8,4699.7,12.98673739]
[1759782691101,0.002,4699.8,4699.7,12.59877939]
[1759782691428,0.002,4699.8,4699.7,10.95238839]
[1759782692903,0.002,4699.8,4699.7,20.31061939]
[1759782693218,0.002,4699.8,4699.7,19.87998139]
[1759782693414,0.002,4699.8,4699.7,20.32758139]
[1759782693712,0.002,4699.8,4699.7,16.48430639]
[1759782693890,0.002,4699.8,4699.7,4.53179539]
[1759782694314,0.002,4699.8,4699.7,13.32231539]
[1759782694824,0.002,4699.8,4699.7,13.87631539]
[1759782694990,0.002,4699.8,4699.7,18.82619839]
[1759782695192,0.002,4699.8,4699.7,18.84027639]
[1759782695507,0.002,4699.8,4699.7,17.81608039]
[1759782695686,0.002,4699.8,4699.7,17.31862339]
[1759782696221,0.002,4699.8,4699.7,18.03805539]
[1759782697032,0.002,4699.8,4699.7,18.02738439]
[1759782698115,0.002,4700.4,4699.7,18.02738439]
[1759782698116,0.012,4700.9,4699.7,23.832097]
[1759782698394,0.012,4700.9,4700.5,2.12743325]
[1759782698597,0.012,4700.9,4700.5,8.93795125]
[1759782698792,0.012,4700.9,4700.5,9.36230025]
[1759782699007,0.012,4700.9,4700.7,2.12734273]
[1759782699332,0.012,4700.9,4700.7,18.51475673]
[1759782699538,0.012,4700.9,4700.7,18.96145673]
[1759782699939,0.012,4700.9,4700.7,17.36738673]
[1759782700232,0.012,4700.9,4700.7,16.36417073]
[1759782701334,0.012,4700.9,4700.7,17.06269173]
[1759782701533,0.012,4700.9,4700.7,10.68964773]
[1759782702125,0.012,4700.9,4700.7,11.56789073]
[1759782702336,0.4301,4701.4,4700.8,2.12729748]
[1759782702524,0.4301,4701.4,4701.1,2.12712773]
[1759782702720,0.4301,4701.4,4701.2,2.41]
[1759782703037,0.012,4701.9,4701.2,2.41]
[1759782703339,0.012,4701.9,4701.3,2.12706439]
[1759782703640,0.012,4701.9,4701.4,2.41]
[1759782704335,0.4701,4701.9,4701.4,2.41]
[1759782706522,0.4601,4701.5,4700.8,2.12728929]
[1759782706757,0.4581,4701.4,4700.0,0.4467]
[1759782707047,0.4581,4701.4,4700.4,2.12747766]
[1759782707343,0.4581,4701.3,4700.5,4.809]
[1759782707527,0.4581,4701.2,4700.5,4.809]
[1759782707723,0.6356,4701.5,4700.5,4.809]
[1759782707920,0.4581,4701.1,4700.6,2.409]
[1759782708119,0.4581,4701.0,4700.6,2.409]
[1759782708320,0.4581,4700.9,4700.6,2.409]